fUSD/lending_fUSD_20240813
["ID","MTS","AMOUNT","RATE_DAILY","PERIOD"]
[334787006,1723563760684,2491.81047161,9.795e-05,2]
[334787007,1723563760731,2491.81047161,9.795e-05,2]
[334787008,1723563760782,2218.55863492,9.795e-05,2]
[334787009,1723563760830,2491.81047161,9.795e-05,2]
[334787010,1723563760873,1966.02891315,9.795e-05,2]
[334787011,1723563761059,1517.38376368,9.795e-05,2]
[334787057,1723564169488,-228.46,9.664e-05,2]
[334787058,1723564169516,-339.23401441,9.664e-05,2]
[334787061,1723564183187,299.28,8.219e-05,2]
[334787062,1723564202960,191.83,9.646e-05,2]
[334787071,1723564220223,1947.2,9.649e-05,2]
[334787072,1723564227034,146749.80643224,9.646e-05,2]
[334787073,1723564227061,36982.58404209,9.646e-05,2]
[334787081,1723564232391,-26.06598559,9.664e-05,2]
[334787082,1723564232400,-250.0,9.684e-05,2]
[334787083,1723564232409,-300.0,9.736e-05,2]
[334787084,1723564232418,-110.83527146,9.737e-05,2]
[334787085,1723564232430,-1295.99472854,9.737e-05,2]
[334787086,1723564232439,-1327.16341046,9.737e-05,2]
[334787087,1723564232498,-3689.24344746,9.737e-05,2]
[334787088,1723564232661,-3998.36314208,9.737e-05,2]
[334787089,1723564232670,-150.0,9.794e-05,2]
[334787090,1723564232680,-832.04199817,9.795e-05,2]
[334787091,1723564232690,-175.48,9.945e-05,2]
[334787092,1723564232699,-150.0,9.945e-05,2]
[334787093,1723564232708,-499.99,9.983e-05,2]
[334787094,1723564232718,-269.12485975,0.0001,2]
[334787095,1723564232729,-700.0,0.0001,2]
[334787096,1723564232741,-329.14260328,0.0001,2]
[334787097,1723564232752,-1674.81742135,0.0001,2]
[334787109,1723564237800,-1799.62781562,0.0001,2]
[334787110,1723564237811,-550.0,0.0001,2]
[334787111,1723564237820,-169.87,0.00010066,2]
[334787112,1723564237830,-1000.0,0.00010074,2]
[334787113,1723564237840,-178.91,0.00010294,2]
[334787114,1723564237852,-531.98,0.00010329,2]
[334787115,1723564237861,-217.98,0.00010446,2]
[334787116,1723564237871,-299.28,0.00010458,2]
[334787117,1723564237880,-835.26,0.0001063,2]
[334787118,1723564237890,-420.0,0.0001071,2]
[334787119,1723564237899,-150.0,0.00010773,2]
[334787120,1723564237909,-475.39658381,0.0001078,2]
[334787121,1723564237964,-684.40987229,0.0001078,2]
[334787122,1723564237974,-139.32310975,0.0001078,2]
[334787123,1723564237985,-886.81689062,0.0001078,2]
[334787124,1723564237995,-279.28,0.000108,2]
[334787125,1723564238004,-557.8196,0.0001088,2]
[334787126,1723564238014,-2241.22933065,0.0001088,2]
[334787127,1723564238046,-24869.44516935,0.0001088,2]
[334787128,1723564238055,-213.3434,0.0001088,2]
[334787129,1723564238064,-3444.97786371,0.00010899,2]
[334787130,1723564238074,-1351.0331,0.000109,2]
[334787131,1723564238084,-152.79080492,0.000109,2]
[334787132,1723564238094,-1950.5873,0.000109,2]
[334787133,1723564238103,-384.81219733,0.000109,2]
[334787134,1723564238113,-4562.45461905,0.000109,2]
[334787135,1723564238124,-725.98785165,0.000109,2]
[334787136,1723564238136,-406.14743283,0.000109,2]
[334787137,1723564238148,-358.33485164,0.000109,2]
[334787138,1723564238161,-1447.07524483,0.000109,2]
[334787139,1723564238171,-1487.7322234,0.000109,2]
[334787140,1723564238180,-593.34778268,0.000109,2]
[334787141,1723564238189,-250.0,0.00010959,2]
[334787142,1723564238199,-1440.89806441,0.00010971,2]
[334787143,1723564238208,-622.0,0.0001098,2]
[334787144,1723564238218,-1257.0,0.0001098,2]
[334787145,1723564238228,-488.62499768,0.0001098,2]
[334787146,1723564238250,-914.0500234,0.0001098,2]
[334787147,1723564238262,-521.32497892,0.0001098,2]
[334787148,1723564238271,-1542.0,0.0001098,2]
[334787149,1723564238281,-103.45844246,0.0001098,2]
[334787150,1723564238293,-46.54155754,0.0001098,2]
[334787151,1723564238302,-446.0,0.0001098,2]
[334787152,1723564238311,-556.0,0.0001098,2]
[334787153,1723564238322,-206.45844246,0.0001098,2]
[334787303,1723564239787,-603.54155754,0.0001098,2]
[334787306,1723564239797,-1137.0,0.0001098,2]
[334787309,1723564239806,-1064.55844246,0.0001098,2]
[334787311,1723564239818,-11.44155754,0.0001098,2]
[334787313,1723564239828,-150.0,0.0001098,2]
[334787315,1723564239837,-1452.77538515,0.0001098,2]
[334787317,1723564239849,-442.22461485,0.0001098,2]
[334787319,1723564239859,-551.0,0.0001098,2]
[334787321,1723564239868,-247.0,0.0001098,2]
[334787323,1723564239877,-345.55844246,0.0001098,2]
[334787325,1723564239889,-832.44155754,0.0001098,2]
[334787327,1723564239898,-2449.45844246,0.0001098,2]
[334787330,1723564239918,-841.54155754,0.0001098,2]
[334787332,1723564239927,-1799.48344246,0.0001098,2]
[334787334,1723564239938,-1403.76454735,0.0001098,2]
[334787336,1723564239949,-1099.65749465,0.0001098,2]
[334787343,1723564240004,-3249.95340702,0.0001098,2]
[334787355,1723564240115,-3512.67903515,0.0001098,2]
[334787358,1723564240126,-2310.06028183,0.0001098,2]
[334787614,1723564242800,-711.82512358,0.0001098,2]
[334787615,1723564242811,-898.71673132,0.0001098,2]
[334787616,1723564242860,-6772.85993664,0.0001098,2]
[334787617,1723564242870,-1204.0,0.0001098,2]
[334787618,1723564242879,-5134.0,0.0001098,2]
[334787619,1723564242888,-5842.0,0.0001098,2]
[334787620,1723564242898,-171.315,0.0001098,2]
[334787621,1723564242907,-1673.0,0.0001098,2]
[334787622,1723564242916,-250.0,0.0001098,2]
[334787623,1723564242925,-13098.42544251,0.0001099,2]
[334787813,1723564244712,-1144.11354626,0.0001099,2]
[334787816,1723564244732,-591.9999999,0.0001099,2]
[334787924,1723564245796,-335.451,0.0001099,2]
[334787926,1723564245808,-8086.07120473,0.0001099,2]
[334787928,1723564245818,-200.1363876,0.00010999,3]
[334787930,1723564245827,-1460.52724435,0.00010999,3]
[334787932,1723564245837,-1460.52724435,0.00010999,3]
[334787934,1723564245848,-811.0,0.00011,2]
[334787936,1723564245857,-27595.57604352,0.00011,2]
[334787938,1723564245866,-2385.8,0.00011,2]
[334787940,1723564245876,-247582.77562347,0.00011,2]
[334787942,1723564245885,-155.0,0.00011,2]
[334787944,1723564245895,-549493.08282215,0.00011,2]
[334787947,1723564245915,-1430.54589821,0.00011,2]
[334787949,1723564245927,-2796.45,0.00011,2]
[334787951,1723564245939,-302174.12811934,0.00011,2]
[334787954,1723564245966,-2695.8483424,0.00011,2]
[334787961,1723564246023,-859.59283247,0.00011,2]
[334787967,1723564246081,-1301.37556257,0.00011,2]
[334788050,1723564742445,277.54,8.219e-05,2]
[334788051,1723564820204,183732.39047433,8.219e-05,2]
[334788052,1723564831732,150.0,0.00026904,120]
[334788053,1723564836061,183732.39047433,8.219e-05,2]
[334788054,1723564951375,150.0,0.00023899,120]
[334788055,1723564952099,183732.39047433,8.219e-05,2]
[334788056,1723565010765,150.0,0.00026278,120]
[334788057,1723565132082,150.0,0.00025125,120]
[334788065,1723565191341,150.0,0.0002402,120]
[334788066,1723565195948,263.66,8.219e-05,2]
[334788078,1723565250776,150.0,0.00024705,120]
[334788084,1723565310773,150.0,0.00026344,120]
[334788133,1723565432084,-460.0,9.962e-05,2]
[334788134,1723565432094,-1000.0,9.967e-05,2]
[334788135,1723565432104,-174.38,0.00010036,2]
[334788136,1723565432114,-150.0,0.00010054,2]
[334788137,1723565432123,-300.0,0.00010054,2]
[334788138,1723565432133,-300.0,0.00010054,2]
[334788139,1723565432143,-321.94,0.00010055,2]
[334788140,1723565432153,-5140.37140198,0.00010055,2]
[334788141,1723565432165,-530.64454437,0.00010055,2]
[334788142,1723565432177,-517.85511205,0.00010055,2]
[334788143,1723565432189,-820.87408869,0.00010055,2]
[334788144,1723565432201,-15668.15485291,0.00010055,2]
[334788145,1723565432211,-3167.40379618,0.00010055,2]
[334788146,1723565432221,-195.09,0.00010141,2]
[334788147,1723565432231,-263.66,0.0001048,2]
[334788148,1723565432241,-600.0,0.000105,3]
[334788149,1723565432255,-1200.0,0.000106,3]
[334788150,1723565432264,-1800.0,0.000107,3]
[334788151,1723565432274,-1542.0,0.00010702,2]
[334788152,1723565432284,-1137.0,0.00010702,2]
[334788153,1723565432294,-114.46475816,0.00010702,2]
[334788154,1723565432306,-441.53524184,0.00010702,2]
[334788155,1723565432315,-810.0,0.00010702,2]
[334788156,1723565432325,-150.0,0.00010702,2]
[334788157,1723565432335,-446.0,0.00010702,2]
[334788158,1723565432345,-551.0,0.00010702,2]
[334788159,1723565432354,-150.0,0.00010702,2]
[334788160,1723565432364,-1895.0,0.00010702,2]
[334788161,1723565432374,-762.0,0.00010702,2]
[334788162,1723565432383,-3291.0,0.00010702,2]
[334788163,1723565432393,-247.0,0.00010702,2]
[334788164,1723565432402,-1076.0,0.00010702,2]
[334788165,1723565432412,-1673.0,0.00010702,2]
[334788166,1723565432422,-5842.0,0.00010702,2]
[334788167,1723565432432,-5134.0,0.00010702,2]
[334788168,1723565432441,-3142.044,0.00010702,2]
[334788169,1723565432451,-1204.0,0.00010702,2]
[334788170,1723565432460,-781.49581451,0.000108,2]
[334788171,1723565432470,-499.99,0.000108,2]
[334788172,1723565432480,-2400.0,0.000108,3]
[334788174,1723565432490,-13353.05084966,0.000109,2]
[334788176,1723565432503,-658.25,0.000109,2]
[334788177,1723565432514,-460.43123519,0.000109,2]
[334788178,1723565432535,-951.62391515,0.000109,2]
[334788179,1723565432545,-3000.0,0.000109,3]
[334788180,1723565432555,-395.56518846,0.000109,2]
[334788181,1723565432564,-1790.95084618,0.000109,2]
[334788182,1723565432574,-418.83651901,0.000109,2]
[334788183,1723565432584,-2000.0,0.00010959,2]
[334788184,1723565432599,-587.14,0.00010959,2]
[334788185,1723565432611,-150.0,0.00010959,2]
[334788186,1723565432621,-250.0,0.00010959,2]
[334788187,1723565432631,-150.0,0.0001098,2]
[334788188,1723565432641,-150.0,0.0001098,2]
[334788189,1723565432650,-183.354,0.0001098,2]
[334788190,1723565432659,-150.0,0.0001098,2]
[334788191,1723565432671,-150.649,0.0001098,2]
[334788192,1723565432683,-155.487,0.0001098,2]
[334788193,1723565432692,-150.166,0.0001098,2]
[334788194,1723565432702,-250.0,0.0001098,2]
[334788195,1723565432712,-150.0,0.0001098,2]
[334788196,1723565432721,-260.605,0.0001098,2]
[334788197,1723565432732,-200.815,0.0001098,2]
[334788198,1723565432746,-169.937,0.0001098,2]
[334788199,1723565432759,-1924.0,0.0001098,2]
[334788200,1723565432769,-1257.0,0.0001098,2]
[334788201,1723565432779,-622.0,0.0001098,2]
[334788202,1723565432789,-1184.68636019,0.0001099,2]
[334788203,1723565432800,-1184.68636019,0.0001099,2]
[334788204,1723565432810,-1184.68636019,0.0001099,2]
[334788205,1723565432819,-390.7754741,0.00010998,2]
[334788206,1723565432829,-1080.8631378,0.00010998,2]
[334788207,1723565432838,-102060.2380976,0.00010998,2]
[334788208,1723565432847,-17424.9186996,0.00010998,2]
[334788209,1723565432857,-6897.525588,0.00010998,2]
[334788210,1723565432866,-14888.2535783,0.00010998,2]
[334788211,1723565432876,-11733.2024398,0.00010998,2]
[334788212,1723565432885,-845.0,0.00011,2]
[334788213,1723565432895,-472643.87319248,0.00011,2]
[334788214,1723565432945,-1910.04659137,0.00011,2]
[334788215,1723565433023,-986.34173907,0.00011,2]
[334788216,1723565433034,-6358.9,0.00011,2]
[334788217,1723565433046,-79247.88243274,0.00011,2]
[334788218,1723565433057,-10283.09270712,0.00011,2]
[334788219,1723565433069,-301.2900896,0.00011,2]
[334788220,1723565433082,-4228.0863352,0.00011,2]
[334788221,1723565433103,-943.09082566,0.00011,2]
[334788222,1723565433115,-1085.42033485,0.00011,2]
[334788223,1723565433127,-8866.39917167,0.00011,2]
[334788224,1723565433138,-2109.43741355,0.00011,2]
[334788225,1723565433150,-561.5562113,0.00011,2]
[334788234,1723565437968,-281.55,9.962e-05,2]
[334788235,1723565437981,-1251.34130064,9.962e-05,2]
[334788236,1723565437993,-729.82228752,9.962e-05,2]
[334788237,1723565438005,-289.4002629,9.962e-05,2]
[334788238,1723565438017,-355.55693075,9.962e-05,2]
[334788239,1723565438029,-1379.31083072,9.962e-05,2]
[334788240,1723565438041,-448.50612791,9.962e-05,2]
[334788241,1723565438051,-1015.25723209,0.00011,2]
[334788242,1723565438063,-13958.78096152,0.00011,2]
[334788243,1723565438075,-6343.80348218,0.00011,2]
[334788244,1723565438086,-437.02924996,0.00011,2]
[334788245,1723565438098,-1152.8192593,0.00011,2]
[334788246,1723565438110,-420.4991465,0.00011,2]
[334788247,1723565438126,-2183.16426548,0.00011,2]
[334788248,1723565438137,-822.49017547,0.00011,2]
[334788249,1723565438189,-18716.99087636,0.00011,2]
[334788250,1723565438201,-972.36680392,0.00011,2]
[334788251,1723565438212,-3253.18471337,0.00011,2]
[334788252,1723565438223,-6336.6802766,0.00011,2]
[334788253,1723565438243,-609.04084905,0.00011,2]
[334788254,1723565438254,-901.82142264,0.00011,2]
[334788255,1723565438263,-1182.21131486,0.00011,2]
[334788256,1723565438274,-2158.98320904,0.00011,2]
[334788257,1723565438298,-438.848,0.00011,2]
[334788258,1723565438309,-5537.55461232,0.00011,2]
[334788266,1723565439976,-441.48538942,0.00011,2]
[334788267,1723565440033,-333.5665185,0.00011,2]
[334788268,1723565440044,-662.70634916,0.00011,2]
[334788269,1723565440056,-2141.25728077,0.00011,2]
[334788270,1723565440067,-630.25841339,0.00011,2]
[334788271,1723565440087,-284.19757186,0.00011,2]
[334788272,1723565440097,-3474.04327968,0.00011,2]
[334788273,1723565440108,-3094.16293897,0.00011,2]
[334788274,1723565440119,-16876.40537994,0.00011,2]
[334788275,1723565440130,-939.63137312,0.00011,2]
[334788276,1723565440141,-340134.43460052,0.00011,2]
[334788277,1723565440153,-186420.41431062,0.00011,2]
[334788278,1723565440164,-2476.92546041,0.00011,2]
[334788279,1723565440176,-902.16144431,0.00011,2]
[334788280,1723565440186,-502.36071293,0.00011,2]
[334788281,1723565440201,-2954.1894928,0.00011,2]
[334788282,1723565440254,-847.02556474,0.00011,2]
[334788283,1723565440265,-505.53116172,0.00011,2]
[334788284,1723565440276,-7207.41919426,0.00011,2]
[334788285,1723565440308,-2749.99999999,0.00011,2]
[334788436,1723565443035,-223.445,0.00010702,2]
[334788438,1723565443045,-174.04509672,0.00011,2]
[334788440,1723565443057,-541.95490328,0.00011,2]
[334788442,1723565443066,-3558.0997892,0.00011,2]
[334788444,1723565443078,-1942.04386883,0.00011,2]
[334788492,1723565444273,-485.92722978,0.00011,2]
[334788493,1723565444285,-8264.97603201,0.00011,2]
[334788494,1723565444296,-2498.71308687,0.00011,2]
[334788495,1723565444308,-483.16338036,0.00011,2]
[334788496,1723565444319,-614.91,0.00011,2]
[334788497,1723565444330,-622.9,0.00011,2]
[334788498,1723565444342,-475.67259041,0.00011,2]
[334788499,1723565444357,-5200.0,0.00011,2]
[334788513,1723565446112,-549.85659396,0.00011,2]
[334788518,1723565446224,-2073.29355406,0.00011,2]
[334788519,1723565446272,-711.38074383,0.00011,2]
[334788520,1723565446283,-557.38891497,0.00011,2]
[334788521,1723565446327,-1094.0838,0.00011,2]
[334788522,1723565446338,-1774.4753,0.00011,2]
[334788523,1723565446348,-1127.66914907,0.00011,2]
[334788524,1723565446359,-1138.65459664,0.00011,2]
[334788525,1723565446370,-1250.0945842,0.00011,2]
[334788526,1723565446381,-2218.84058109,0.00011,2]
[334788540,1723565701458,245.56,9.428e-05,2]
[334788543,1723565790804,150.0,0.00026671,120]
[334788544,1723566210836,150.0,0.00026763,120]
[334788546,1723566224946,233.28,8.219e-05,2]
[334788581,1723566511341,150.0,0.00025688,120]
[334788601,1723566632062,-517.021423,9.85e-05,2]
[334788602,1723566632072,-300.27,9.9e-05,2]
[334788603,1723566632086,-250.0,9.932e-05,2]
[334788605,1723566632096,-550.0,0.0001,2]
[334788607,1723566632106,-262.0,0.00010047,2]
[334788609,1723566632116,-4039.63183338,0.00010048,2]
[334788610,1723566632137,-383.24987911,0.00010048,2]
[334788611,1723566632240,-465.0,0.00010048,2]
[334788612,1723566632252,-499.60047608,0.00010048,2]
[334788613,1723566632300,-943.65948572,0.00010048,2]
[334788614,1723566632312,-432.4333886,0.00010048,2]
[334788617,1723566632488,-1935.80047111,0.00010048,2]
[334788618,1723566632502,-1816.514466,0.00010048,2]
[334788619,1723566632511,-800.0,0.00010071,2]
[334788620,1723566632520,-191.86,0.00010137,2]
[334788621,1723566632530,-2023.54,0.00010199,2]
[334788622,1723566632539,-200.0,0.00010247,2]
[334788623,1723566632548,-180.11,0.00010278,2]
[334788624,1723566632557,-151.17553402,0.00010278,2]
[334788625,1723566632573,-806.30446598,0.00010278,2]
[334788626,1723566632582,-233.28,0.00010481,2]
[334788627,1723566632591,-150.0,0.00010577,2]
[334788628,1723566632600,-150.0,0.00010578,2]
[334788629,1723566632609,-300.0,0.00010578,2]
[334788630,1723566632619,-100.41553402,0.00010578,2]
[334788635,1723566638175,-255.99446598,0.00010578,2]
[334788636,1723566638185,-150.7,0.00010578,2]
[334788637,1723566638195,-300.0,0.00010578,2]
[334788638,1723566638203,-1063.52,0.00010578,2]
[334788639,1723566638213,-300.95,0.00010578,2]
[334788640,1723566638222,-150.0,0.00010578,2]
[334788641,1723566638231,-852.66,0.00010578,2]
[334788642,1723566638240,-150.0,0.00010578,2]
[334788643,1723566638249,-849.88,0.00010678,2]
[334788644,1723566638259,-1482.72,0.00010889,2]
[334788645,1723566638268,-316.79909913,0.00010889,2]
[334788646,1723566638279,-819.21090087,0.00010889,2]
[334788647,1723566638289,-383.18640397,0.0001089,2]
[334788648,1723566638300,-1987.09211603,0.0001089,2]
[334788649,1723566638310,-1544.59,0.00010895,2]
[334788650,1723566638319,-4989.8213,0.00010896,2]
[334788651,1723566638329,-439.73084712,0.00010896,2]
[334788652,1723566638344,-494.74384602,0.00010896,2]
[334788653,1723566638355,-771.07115909,0.00010896,2]
[334788654,1723566638366,-593.26334,0.00010896,2]
[334788655,1723566638376,-270.9400001,0.00010896,2]
[334788656,1723566638394,-388.79002502,0.00010896,2]
[334788657,1723566638406,-454.11354937,0.00010896,2]
[334788658,1723566638417,-2139.00296813,0.00010896,2]
[334788659,1723566638429,-1243.42448303,0.00010896,2]
[334788660,1723566638456,-652.16989619,0.00010896,2]
[334788667,1723566640194,-344.62556429,0.00010896,2]
[334788668,1723566640205,-284.0,0.00010896,2]
[334788669,1723566640237,-302.98,0.00010896,2]
[334788670,1723566640248,-676.47483956,0.00010896,2]
[334788671,1723566640295,-1609.608,0.00010896,2]
[334788672,1723566640307,-970.97460011,0.00010896,2]
[334788673,1723566640318,-522.77982189,0.00010896,2]
[334788674,1723566640329,-3005.34496008,0.00010896,2]
[334788675,1723566640339,-392.0338,0.00010898,2]
[334788676,1723566640349,-6489.98563415,0.00010899,2]
[334788677,1723566642101,-3875.41193819,0.00010899,2]
[334788678,1723566642111,-10365.3975723,0.00010899,2]
[334788679,1723566642120,-10365.3975723,0.00010899,2]
[334788680,1723566642129,-10365.3975723,0.00010899,2]
[334788681,1723566642139,-3858.23965539,0.00010899,2]
[334788683,1723566642789,-379.92281536,0.00010899,2]
[334788686,1723566642801,-3100.09378254,0.00010899,2]
[334788688,1723566642816,-3027.14131901,0.00010899,2]
[334788690,1723566642826,-2894.56874895,0.00010899,2]
[334788692,1723566642836,-2825.0485537,0.00010899,2]
[334788694,1723566642849,-3551.38360918,0.00010899,2]
[334788697,1723566642860,-1094.39666047,0.00010899,2]
[334788699,1723566642869,-1683.97521485,0.00010899,2]
[334788702,1723566642880,-1931.68728118,0.00010899,2]
[334788704,1723566642891,-4050.28544607,0.00010899,2]
[334788706,1723566642903,-1803.1788684,0.00010899,2]
[334788708,1723566642914,-896.2707618,0.00010899,2]
[334788710,1723566642923,-1120.1665042,0.00010899,2]
[334788713,1723566642936,-1745.09983941,0.00010899,2]
[334788715,1723566642949,-1125.95213341,0.00010899,2]
[334788718,1723566642960,-1043.21965598,0.00010899,2]
[334788753,1723566643182,-509.15524917,0.00010899,2]
[334788755,1723566643193,-4821.80419013,0.00010899,2]
[334788757,1723566643202,-10365.3975723,0.000109,2]
[334788759,1723566643211,-1772.871,0.000109,2]
[334788761,1723566643220,-152.79080492,0.000109,2]
[334788763,1723566643229,-426.41,0.000109,2]
[334788764,1723566643238,-150.0,0.000109,2]
[334788766,1723566643247,-426.41,0.000109,2]
[334788768,1723566643257,-307.92,0.000109,2]
[334788770,1723566643265,-425.52,0.000109,2]
[334788772,1723566643274,-311.44248468,0.000109,2]
[334788774,1723566643283,-1217.41355406,0.000109,2]
[334788776,1723566643292,-300.6421342,0.000109,2]
[334788778,1723566643303,-5130.95572728,0.000109,2]
[334788780,1723566643314,-600.34827093,0.000109,2]
[334788782,1723566643325,-1448.63415379,0.000109,2]
[334788784,1723566643336,-498.7999998,0.000109,2]
[334788786,1723566643347,-2386.0172863,0.000109,2]
[334788788,1723566643356,-242.76850774,0.000109,2]
[334788790,1723566643365,-93.0939873,0.00010959,2]
[334788792,1723566643377,-156.9060127,0.00010959,2]
[334788794,1723566643386,-1418.72,0.00010959,2]
[334788796,1723566643397,-446.0,0.0001098,2]
[334788798,1723566643406,-1137.0,0.0001098,2]
[334788800,1723566643415,-810.0,0.0001098,2]
[334788802,1723566643424,-556.0,0.0001098,2]
[334788804,1723566643434,-125.3739873,0.0001098,2]
[334788806,1723566643445,-24.6260127,0.0001098,2]
[334788808,1723566643455,-551.0,0.0001098,2]
[334788810,1723566643465,-136.03478406,0.0001098,2]
[334788812,1723566643476,-1758.96521594,0.0001098,2]
[334788814,1723566643485,-150.0,0.0001098,2]
[334788816,1723566643494,-247.0,0.0001098,2]
[334788818,1723566643503,-3291.0,0.0001098,2]
[334788820,1723566643512,-5134.0,0.0001098,2]
[334788822,1723566643522,-1257.0,0.0001098,2]
[334788824,1723566643531,-1542.0,0.0001098,2]
[334788826,1723566643541,-1673.0,0.0001098,2]
[334788828,1723566643550,-622.0,0.0001098,2]
[334788830,1723566643559,-5842.0,0.0001098,2]
[334788832,1723566643569,-1204.0,0.0001098,2]
[334788834,1723566643578,-5368.74225764,0.0001098,2]
[334788835,1723566643588,-270983.77369388,0.0001099,2]
[334788941,1723566644540,-877.60613837,0.0001099,2]
[334788944,1723566644562,-1381.28,0.0001099,2]
[334788946,1723566644573,-666.41,0.0001099,2]
[334788947,1723566644584,-3953.81927455,0.0001099,2]
[334788948,1723566644604,-1643.79472066,0.0001099,2]
[334788949,1723566644615,-1039.9999,0.0001099,2]
[334788950,1723566644648,-5453.45619711,0.0001099,2]
[334788951,1723566644660,-8622.66212954,0.0001099,2]
[334788952,1723566644680,-648.04903338,0.0001099,2]
[334788953,1723566644691,-1951.24999987,0.0001099,2]
[334788954,1723566644702,-1507.29,0.0001099,2]
[334788956,1723566644713,-14700.83896024,0.0001099,2]
[334789024,1723566646199,-1924.0,0.00010969,2]
[334789025,1723566646209,-1186.28634999,0.0001099,2]
[334789026,1723566646220,-1530.66389252,0.0001099,2]
[334789027,1723566646232,-2717.37038101,0.0001099,2]
[334789028,1723566646261,-3888.80813399,0.0001099,2]
[334789029,1723566646272,-4127.44642115,0.0001099,2]
[334789030,1723566646321,-599.38775637,0.0001099,2]
[334789031,1723566646332,-4148.01782332,0.0001099,2]
[334789032,1723566646343,-395.32957617,0.0001099,2]
[334789033,1723566646387,-1395.18355001,0.0001099,2]
[334789034,1723566646405,-5360.8,0.0001099,2]
[334789035,1723566646499,-5917.9735355,0.0001099,2]
[334789036,1723566646511,-28981.51271297,0.0001099,2]
[334789046,1723566690923,150.0,0.0002451,120]
[334789048,1723566698353,209.95,8.31e-05,2]
[334789088,1723567174599,199.45,8.219e-05,2]
[334789091,1723567576751,155.67,0.00027,120]
[334789094,1723567649286,189.47,8.219e-05,2]
[334789095,1723567754640,1586.58,9.64e-05,2]
[334789162,1723567832419,-360.0,9.69e-05,2]
[334789163,1723567832430,-180.11,9.754e-05,2]
[334789164,1723567832440,-516.85,9.799e-05,2]
[334789165,1723567832451,-908.2,9.806e-05,2]
[334789166,1723567832460,-323.81,9.85e-05,2]
[334789167,1723567832471,-200.0,9.888e-05,2]
[334789168,1723567832483,-250.0,9.895e-05,2]
[334789169,1723567832494,-640.0,9.936e-05,2]
[334789170,1723567832504,-300.0,9.961e-05,2]
[334789171,1723567832514,-550.0,0.0001,2]
[334789172,1723567832524,-150.0,0.00010027,2]
[334789173,1723567832534,-174.38,0.00010042,2]
[334789174,1723567832544,-302.43,0.00010178,2]
[334789175,1723567832562,-150.0,0.00010178,2]
[334789176,1723567832572,-1061.04,0.00010178,2]
[334789177,1723567832582,-151.45,0.00010178,2]
[334789178,1723567832594,-322.86,0.00010178,2]
[334789179,1723567832604,-1061.84,0.00010278,2]
[334789180,1723567832614,-150.0,0.00010278,2]
[334789181,1723567832624,-426.41,0.00010382,2]
[334789182,1723567832634,-10000.0,0.00010435,2]
[334789183,1723567832644,-189.47,0.00010462,2]
[334789184,1723567832654,-152.43,0.00010495,2]
[334789186,1723567832663,-530.92,0.00010578,2]
[334789188,1723567832673,-150.0,0.00010578,2]
[334789190,1723567832683,-150.0,0.00010578,2]
[334789191,1723567832693,-150.0,0.00010578,2]
[334789192,1723567832703,-1975.2321,0.0001088,2]
[334789194,1723567832713,-285.1037,0.00010883,2]
[334789195,1723567832724,-25627.641,0.0001089,2]
[334789196,1723567832734,-4341.0005,0.0001089,2]
[334789197,1723567832744,-970.9746,0.0001089,2]
[334789198,1723567832754,-19497.39,0.0001089,2]
[334789199,1723567832765,-1429.20687659,0.00010899,2]
[334789200,1723567832774,-1429.2068765,0.00010899,2]
[334789201,1723567832783,-1429.2068765,0.00010899,2]
[334789202,1723567832792,-1429.2068765,0.00010899,2]
[334789203,1723567832806,-1429.2068765,0.00010899,2]
[334789204,1723567832816,-1429.2068765,0.00010899,2]
[334789205,1723567832826,-1429.2068765,0.00010899,2]
[334789206,1723567832837,-1429.2068765,0.00010899,2]
[334789207,1723567832846,-1429.2068765,0.00010899,2]
[334789208,1723567832856,-763.9540246,0.000109,2]
[334789209,1723567832867,-1429.2068765,0.000109,2]
[334789210,1723567832877,-360.0,0.00010901,2]